fUSD/lending_fUSD_20240424
["ID","MTS","AMOUNT","RATE_DAILY","PERIOD"]
[323423377,1713976243839,-573.51,0.00011232,2]
[323423379,1713976243848,-1224.05,0.00011232,2]
[323423380,1713976243857,-500.0,0.00011232,2]
[323423383,1713976243867,-520.44,0.00011232,2]
[323423385,1713976243878,-500.0,0.00011232,2]
[323423387,1713976243888,-500.0,0.00011232,2]
[323423389,1713976243898,-246.61,0.00011232,2]
[323423390,1713976243907,-500.0,0.00011232,2]
[323423393,1713976243917,-500.0,0.00011232,2]
[323423394,1713976243926,-1002.78,0.00011232,2]
[323423396,1713976243936,-500.0,0.00011232,2]
[323423398,1713976243946,-603.7,0.00011232,2]
[323423401,1713976243955,-729.16,0.00011232,2]
[323423403,1713976243965,-500.0,0.00011232,2]
[323423405,1713976243975,-2225.58,0.00011232,2]
[323423406,1713976243985,-500.0,0.00011232,2]
[323423408,1713976243994,-1036.59,0.00011232,2]
[323423410,1713976244003,-233.91,0.00011232,2]
[323423412,1713976244013,-500.0,0.00011232,2]
[323423414,1713976244022,-500.0,0.00011232,2]
[323423416,1713976244031,-500.0,0.00011232,2]
[323423418,1713976244040,-1710.7,0.00011232,2]
[323423420,1713976244049,-499.17,0.00011232,2]
[323423422,1713976244058,-500.0,0.00011232,2]
[323423424,1713976244068,-500.0,0.00011232,2]
[323423427,1713976244077,-500.0,0.00011232,2]
[323423429,1713976244086,-500.0,0.00011232,2]
[323423430,1713976244095,-838.34,0.00011232,2]
[323423432,1713976244104,-500.0,0.00011232,2]
[323423434,1713976244113,-500.0,0.00011232,2]
[323423436,1713976244123,-500.0,0.00011232,2]
[323423438,1713976244135,-500.0,0.00011232,2]
[323423441,1713976244149,-500.0,0.00011232,2]
[323423442,1713976244159,-4367.33,0.00011232,2]
[323423445,1713976244169,-1550.3,0.00011232,2]
[323423447,1713976244179,-1320.6,0.00011232,2]
[323423449,1713976244188,-519.59,0.00011232,2]
[323423451,1713976244197,-500.0,0.00011232,2]
[323423453,1713976244207,-2648.44,0.00011232,2]
[323423455,1713976244216,-500.0,0.00011232,2]
[323423457,1713976244226,-500.0,0.00011232,2]
[323423459,1713976244235,-2917.87,0.00011232,2]
[323423461,1713976244245,-4365.04,0.00011232,2]
[323423463,1713976244255,-1297.57,0.00011232,2]
[323423464,1713976244264,-8081.13,0.00011232,2]
[323423467,1713976244274,-1996.11,0.00011232,2]
[323423469,1713976244283,-1198.52,0.00011232,2]
[323423471,1713976244292,-3084.65,0.00011232,2]
[323423473,1713976244302,-500.0,0.00011232,2]
[323423474,1713976244311,-1659.5,0.00011232,2]
[323423476,1713976244320,-913.76,0.00011232,2]
[323423478,1713976244330,-1965.41,0.00011232,2]
[323423481,1713976244339,-881.97,0.00011232,2]
[323423482,1713976244348,-500.0,0.00011232,2]
[323423484,1713976244357,-500.0,0.00011232,2]
[323423487,1713976244367,-3063.39,0.00011232,2]
[323423489,1713976244378,-500.0,0.00011232,2]
[323423491,1713976244387,-1187.38,0.00011232,2]
[323423492,1713976244397,-1779.17,0.00011232,2]
[323423494,1713976244406,-1604.06,0.00011232,2]
[323423496,1713976244415,-500.0,0.00011232,2]
[323423498,1713976244424,-500.0,0.00011232,2]
[323423500,1713976244435,-500.0,0.00011232,2]
[323423502,1713976244444,-6175.45,0.00011232,2]
[323423504,1713976244452,-5311.69,0.00011232,2]
[323423506,1713976244462,-500.0,0.00011232,2]
[323423508,1713976244471,-500.0,0.00011232,2]
[323423510,1713976244480,-2178.02,0.00011232,2]
[323423512,1713976244489,-1296.94,0.00011232,2]
[323423514,1713976244498,-500.0,0.00011232,2]
[323423517,1713976244508,-591.15,0.00011232,2]
[323423518,1713976244518,-500.0,0.00011232,2]
[323423520,1713976244527,-3148.34,0.00011232,2]
[323423522,1713976244537,-872.64,0.00011232,2]
[323423525,1713976244546,-911.06,0.00011232,2]
[323423527,1713976244556,-3053.76,0.00011232,2]
[323423529,1713976244565,-500.0,0.00011232,2]
[323423531,1713976244574,-1324.88,0.00011232,2]
[323423533,1713976244584,-1375.05,0.00011232,2]
[323423535,1713976244593,-746.39,0.00011232,2]
[323423537,1713976244602,-2805.05,0.00011232,2]
[323423539,1713976244611,-1037.34,0.00011232,2]
[323423541,1713976244620,-960.9,0.00011232,2]
[323423543,1713976244632,-1177.67,0.00011232,2]
[323423545,1713976244642,-500.0,0.00011232,2]
[323423547,1713976244651,-5007.68,0.00011232,2]
[323423549,1713976244660,-1713.56,0.00011232,2]
[323423551,1713976244670,-993.66,0.00011232,2]
[323423552,1713976244680,-3361.85,0.00011232,2]
[323423555,1713976244689,-982.57,0.00011232,2]
[323423556,1713976244699,-500.0,0.00011232,2]
[323423558,1713976244709,-541.47,0.00011232,2]
[323423560,1713976244718,-816.12,0.00011232,2]
[323423562,1713976244727,-500.0,0.00011232,2]
[323423564,1713976244738,-482.09,0.00011232,2]
[323423566,1713976244748,-500.0,0.00011232,2]
[323423568,1713976244758,-675.35,0.00011232,2]
[323423570,1713976244769,-2187.48,0.00011232,2]
[323423572,1713976244780,-2925.39,0.00011232,2]
[323423574,1713976244795,-2115.12,0.00011232,2]
[323423576,1713976244808,-500.0,0.00011232,2]
[323423578,1713976244818,-1824.0,0.00011232,2]
[323423580,1713976244829,-2338.0,0.00011232,2]
[323423582,1713976244841,-500.0,0.00011232,2]
[323423584,1713976244850,-1261.55,0.00011232,2]
[323423586,1713976244860,-957.51,0.00011232,2]
[323423588,1713976244870,-3129.43,0.00011232,2]
[323423590,1713976244883,-9216.47,0.00011232,2]
[323423592,1713976244893,-500.0,0.00011232,2]
[323423594,1713976244903,-1043.04,0.00011232,2]
[323423597,1713976244914,-1391.34,0.00011232,2]
[323423599,1713976244926,-1867.59,0.00011232,2]
[323423601,1713976244937,-1528.0,0.00011232,2]
[323423602,1713976244947,-500.0,0.00011232,2]
[323423604,1713976244958,-500.0,0.00011232,2]
[323423607,1713976244969,-500.0,0.00011232,2]
[323423609,1713976244980,-900.23,0.00011232,2]
[323423610,1713976244990,-1992.68,0.00011232,2]
[323423612,1713976245000,-5137.5,0.00011232,2]
[323423615,1713976245010,-851.11,0.00011232,2]
[323423617,1713976245020,-1575.56,0.00011232,2]
[323423618,1713976245031,-2608.84,0.00011232,2]
[323423620,1713976245041,-7758.68,0.00011232,2]
[323423622,1713976245052,-1135.85,0.00011232,2]
[323423624,1713976245063,-834.43,0.00011232,2]
[323423627,1713976245074,-500.0,0.00011232,2]
[323423629,1713976245084,-500.0,0.00011232,2]
[323423631,1713976245095,-2309.45,0.00011232,2]
[323423632,1713976245105,-820.12,0.00011232,2]
[323423635,1713976245116,-2774.93,0.00011232,2]
[323423637,1713976245129,-2192.51,0.00011232,2]
[323423639,1713976245139,-2416.98,0.00011232,2]
[323423641,1713976245149,-500.0,0.00011232,2]
[323423642,1713976245162,-1213.21,0.00011232,2]
[323423644,1713976245171,-943.25,0.00011232,2]
[323423646,1713976245180,-768.28,0.00011232,2]
[323423648,1713976245190,-1813.22,0.00011232,2]
[323423651,1713976245199,-1279.26,0.00011232,2]
[323423653,1713976245208,-1127.54,0.00011232,2]
[323423654,1713976245217,-1167.27,0.00011232,2]
[323423656,1713976245227,-508.59,0.00011232,2]
[323423659,1713976245237,-2095.87,0.00011232,2]
[323423661,1713976245247,-1553.99,0.00011232,2]
[323423663,1713976245257,-1839.75,0.00011232,2]
[323423665,1713976245267,-584.71,0.00011232,2]
[323423668,1713976245276,-636.69,0.00011232,2]
[323423670,1713976245286,-3418.02,0.00011232,2]
[323423672,1713976245294,-1220.46,0.00011232,2]
[323423674,1713976245303,-2799.01,0.00011232,2]
[323423676,1713976245313,-500.0,0.00011232,2]
[323423678,1713976245322,-4314.83,0.00011232,2]
[323423681,1713976245331,-500.0,0.00011232,2]
[323423683,1713976245340,-500.0,0.00011232,2]
[323423685,1713976245350,-592.12,0.00011232,2]
[323423687,1713976245359,-500.0,0.00011232,2]
[323423689,1713976245368,-1945.28,0.00011232,2]
[323423691,1713976245380,-1232.81,0.00011232,2]
[323423693,1713976245389,-2272.15,0.00011232,2]
[323423695,1713976245398,-1584.98,0.00011232,2]
[323423697,1713976245407,-1559.8,0.00011232,2]
[323423699,1713976245417,-3166.0,0.00011232,2]
[323423701,1713976245426,-1218.47,0.00011232,2]
[323423703,1713976245435,-500.0,0.00011232,2]
[323423705,1713976245445,-644.11,0.00011232,2]
[323423707,1713976245454,-685.75,0.00011232,2]
[323423709,1713976245463,-5225.37,0.00011232,2]
[323423711,1713976245472,-500.0,0.00011232,2]
[323423713,1713976245481,-500.0,0.00011232,2]
[323423715,1713976245490,-2275.67,0.00011232,2]
[323423717,1713976245499,-3080.73,0.00011232,2]
[323423719,1713976245509,-500.0,0.00011232,2]
[323423722,1713976245518,-500.0,0.00011232,2]
[323423725,1713976245528,-785.82,0.00011232,2]
[323423728,1713976245537,-500.0,0.00011232,2]
[323423731,1713976245547,-1915.51,0.00011232,2]
[323423733,1713976245555,-747.07,0.00011232,2]
[323423735,1713976245565,-1824.07,0.00011232,2]
[323423737,1713976245575,-5977.1,0.00011232,2]
[323423739,1713976245584,-4343.19,0.00011232,2]
[323423741,1713976245593,-3121.44,0.00011232,2]
[323423743,1713976245602,-1232.48,0.00011232,2]
[323423745,1713976245611,-626.45,0.00011232,2]
[323423747,1713976245620,-237.25851057,0.00011232,2]
[323423749,1713976245633,-2365.18,0.00011232,2]
[323423751,1713976245643,-831.43,0.00011232,2]
[323423753,1713976245652,-500.0,0.00011232,2]
[323423755,1713976245661,-970.38,0.00011232,2]
[323423757,1713976245670,-500.0,0.00011232,2]
[323423759,1713976245680,-500.0,0.00011232,2]
[323423761,1713976245689,-1965.03,0.00011232,2]
[323423763,1713976245698,-1171.25,0.00011232,2]
[323423765,1713976245707,-1489.46,0.00011232,2]
[323423767,1713976245716,-500.0,0.00011232,2]
[323423769,1713976245725,-868.55,0.00011232,2]
[323423771,1713976245735,-500.0,0.00011232,2]
[323423773,1713976245744,-958.46,0.00011232,2]
[323423775,1713976245753,-1857.9,0.00011232,2]
[323423777,1713976245762,-5047.2,0.00011232,2]
[323423779,1713976245771,-640.25,0.00011232,2]
[323423781,1713976245780,-328.41357537,0.00011232,2]
[323423783,1713976245791,-567.55,0.00011232,2]
[323423785,1713976245801,-956.3,0.00011232,2]
[323423787,1713976245810,-500.0,0.00011232,2]
[323423789,1713976245819,-2767.3,0.00011232,2]
[323423791,1713976245829,-2476.67,0.00011232,2]
[323423793,1713976245838,-500.0,0.00011264,2]
[323423795,1713976245847,-182.72,0.00011378,2]
[323423797,1713976245857,-151.69376945,0.00011406,2]
[323423799,1713976245866,-157.23443646,0.00011504,2]
[323423801,1713976245877,-500.0,0.00011505,2]
[323423803,1713976245887,-500.0,0.00011505,2]
[323423805,1713976245896,-500.0,0.00011505,2]
[323423807,1713976245906,-500.0,0.00011505,2]
[323423809,1713976245915,-44233.64427072,0.00011506,2]
[323423811,1713976245924,-500.0,0.00011506,2]
[323423813,1713976245933,-500.0,0.00011506,2]
[323423815,1713976245942,-500.0,0.00011506,2]
[323423817,1713976245952,-500.0,0.00011506,2]
[323423819,1713976245961,-500.0,0.00011506,2]
[323423821,1713976245970,-500.0,0.00011506,2]
[323423823,1713976245979,-500.0,0.00011506,2]
[323423825,1713976245988,-500.0,0.00011506,2]
[323423827,1713976245998,-500.0,0.00011506,2]
[323423829,1713976246008,-500.0,0.00011506,2]
[323423831,1713976246017,-500.0,0.00011506,2]
[323423833,1713976246027,-500.0,0.00011506,2]
[323423835,1713976246036,-500.0,0.00011506,2]
[323423838,1713976246046,-500.0,0.00011506,2]
[323423840,1713976246055,-500.0,0.00011506,2]
[323423843,1713976246063,-500.0,0.00011506,2]
[323423845,1713976246072,-500.0,0.00011506,2]
[323423847,1713976246081,-791.18,0.00011506,2]
[323423848,1713976246090,-500.0,0.00011506,2]
[323423849,1713976246100,-500.0,0.00011506,2]
[323423850,1713976246110,-500.0,0.00011506,2]
[323423851,1713976246119,-500.0,0.00011506,2]
[323423852,1713976246133,-507.83,0.00011506,2]
[323423853,1713976246145,-500.0,0.00011506,2]
[323423854,1713976246155,-734.4,0.00011506,2]
[323423855,1713976246165,-500.0,0.00011506,2]
[323423856,1713976246176,-500.0,0.00011506,2]
[323423857,1713976246185,-500.0,0.00011506,2]
[323423859,1713976246196,-500.0,0.00011506,2]
[323423860,1713976246206,-500.0,0.00011506,2]
[323423862,1713976246217,-500.0,0.00011506,2]
[323423864,1713976246226,-820.26,0.00011506,2]
[323423866,1713976246235,-500.0,0.00011506,2]
[323423868,1713976246245,-500.0,0.00011506,2]
[323423870,1713976246255,-500.0,0.00011506,2]
[323423872,1713976246264,-1759.19,0.00011506,2]
[323423874,1713976246274,-740.61,0.00011506,2]
[323423876,1713976246282,-500.0,0.00011506,2]
[323423878,1713976246292,-500.0,0.00011506,2]
[323423880,1713976246301,-500.0,0.00011506,2]
[323423882,1713976246311,-500.0,0.00011506,2]
[323423884,1713976246320,-500.0,0.00011506,2]
[323423886,1713976246330,-571.82,0.00011506,2]
[323423888,1713976246341,-500.0,0.00011506,2]
[323423890,1713976246351,-500.0,0.00011506,2]
[323423892,1713976246360,-500.0,0.00011506,2]
[323423895,1713976246371,-634.48,0.00011506,2]
[323423897,1713976246384,-500.0,0.00011506,2]
[323423898,1713976246394,-500.0,0.00011506,2]
[323423901,1713976246405,-1181.58,0.00011506,2]
[323423903,1713976246415,-500.0,0.00011506,2]
[323423905,1713976246425,-603.08,0.00011506,2]
[323423907,1713976246436,-710.55,0.00011506,2]
[323423909,1713976246446,-644.08,0.00011506,2]
[323423911,1713976246456,-500.0,0.00011506,2]
[323423912,1713976246466,-569.21,0.00011506,2]
[323423914,1713976246477,-1086.95,0.00011506,2]
[323423917,1713976246488,-500.0,0.00011506,2]
[323423918,1713976246498,-1712.03,0.00011506,2]
[323423921,1713976246508,-500.0,0.00011506,2]
[323423922,1713976246519,-500.0,0.00011506,2]
[323423925,1713976246529,-500.0,0.00011506,2]
[323423927,1713976246539,-1159.56,0.00011506,2]
[323423929,1713976246549,-1454.53,0.00011506,2]
[323423931,1713976246559,-500.0,0.00011506,2]
[323423933,1713976246571,-1161.19,0.00011506,2]
[323423935,1713976246581,-500.0,0.00011506,2]
[323423937,1713976246590,-500.0,0.00011506,2]
[323423939,1713976246600,-500.0,0.00011506,2]
[323423941,1713976246609,-819.33,0.00011506,2]
[323423943,1713976246620,-500.0,0.00011506,2]
[323423944,1713976246636,-573.51,0.00011506,2]
[323423947,1713976246647,-1224.05,0.00011506,2]
[323423949,1713976246657,-500.0,0.00011506,2]
[323423970,1713976246867,-520.44,0.00011506,2]
[323423972,1713976246884,-500.0,0.00011506,2]
[323423974,1713976246896,-339.59781647,0.00011506,2]
[323423976,1713976246906,-246.61,0.00011506,2]
[323423978,1713976246915,-500.0,0.00011506,2]
[323423980,1713976246926,-479.4,0.00011506,2]
[323423982,1713976246936,-1002.78,0.00011506,2]
[323423984,1713976246946,-500.0,0.00011506,2]
[323423986,1713976246956,-603.7,0.00011506,2]
[323423988,1713976246966,-729.16,0.00011506,2]
[323423990,1713976246976,-500.0,0.00011506,2]
[323423992,1713976246985,-2225.58,0.00011506,2]
[323423994,1713976246996,-500.0,0.00011506,2]
[323423996,1713976247004,-1036.59,0.00011506,2]
[323423998,1713976247015,-500.0,0.00011506,2]
[323424000,1713976247024,-500.0,0.00011506,2]
[323424002,1713976247034,-500.0,0.00011506,2]
[323424004,1713976247044,-1710.7,0.00011506,2]
[323424006,1713976247054,-500.0,0.00011506,2]
[323424007,1713976247064,-500.0,0.00011506,2]
[323424010,1713976247075,-500.0,0.00011506,2]
[323424012,1713976247086,-500.0,0.00011506,2]
[323424014,1713976247097,-838.34,0.00011506,2]
[323424016,1713976247107,-500.0,0.00011506,2]
[323424018,1713976247116,-500.0,0.00011506,2]
[323424019,1713976247126,-500.0,0.00011506,2]
[323424022,1713976247140,-500.0,0.00011506,2]
[323424024,1713976247150,-500.0,0.00011506,2]
[323424025,1713976247160,-4367.33,0.00011506,2]
[323424028,1713976247170,-1550.3,0.00011506,2]
[323424030,1713976247179,-1320.6,0.00011506,2]
[323424032,1713976247190,-519.59,0.00011506,2]
[323424034,1713976247199,-500.08376638,0.00011506,2]
[323424036,1713976247209,-2648.44,0.00011506,2]
[323424038,1713976247218,-500.0,0.00011506,2]
[323424040,1713976247228,-500.0,0.00011506,2]
[323424042,1713976247237,-2917.87,0.00011506,2]
[323424043,1713976247247,-4365.04,0.00011506,2]
[323424045,1713976247256,-1297.57,0.00011506,2]
[323424048,1713976247268,-8081.13,0.00011506,2]
[323424049,1713976247279,-1996.11,0.00011506,2]
[323424052,1713976247289,-1198.52,0.00011506,2]
[323424053,1713976247298,-3084.65,0.00011506,2]
[323424056,1713976247308,-500.0,0.00011506,2]
[323424058,1713976247318,-390.14588674,0.00011506,2]
[323424115,1713976247872,-390.5365025,0.00010858,2]
[323424118,1713976247889,-1909.6647975,0.00010858,2]
[323424120,1713976247899,-500.0,0.00010958,2]
[323424122,1713976247908,-500.0,0.00011232,2]
[323424124,1713976247917,-1269.35411326,0.00011506,2]
[323424126,1713976247927,-913.76,0.00011506,2]
[323424128,1713976247936,-1965.41,0.00011506,2]
[323424130,1713976247947,-111.66108924,0.00011506,2]
[323424135,1713976247984,-500.0,0.00010958,2]
[323424137,1713976247994,-770.30891076,0.00011506,2]
[323424139,1713976248003,-500.0,0.00011506,2]
[323424141,1713976248013,-534.50628909,0.00011506,2]
[323424143,1713976248023,-652.49678385,0.00011506,2]
[323424147,1713976248058,-2410.89321615,0.00011506,2]
[323424149,1713976248067,-500.0,0.00011506,2]
[323424151,1713976248077,-1187.38,0.00011506,2]
[323424153,1713976248086,-1779.17,0.00011506,2]
[323424155,1713976248095,-1604.06,0.00011506,2]
[323424157,1713976248104,-160.22969742,0.00011506,2]
[323424160,1713976248116,-339.77030258,0.00011506,2]
[323424162,1713976248126,-500.0,0.00011506,2]
[323424164,1713976248138,-500.0,0.00011506,2]
[323424166,1713976248147,-6175.45,0.00011506,2]
[323424168,1713976248157,-5311.69,0.00011506,2]
[323424170,1713976248167,-500.0,0.00011506,2]
[323424171,1713976248177,-500.0,0.00011506,2]
[323424173,1713976248186,-2178.02,0.00011506,2]
[323424175,1713976248196,-1296.94,0.00011506,2]
[323424177,1713976248206,-500.0,0.00011506,2]
[323424180,1713976248216,-591.15,0.00011506,2]
[323424182,1713976248226,-3148.34,0.00011506,2]
[323424183,1713976248236,-872.64,0.00011506,2]
[323424186,1713976248245,-911.06,0.00011506,2]
[323424188,1713976248255,-3053.76,0.00011506,2]
[323424190,1713976248265,-500.0,0.00011506,2]
[323424191,1713976248274,-1324.88,0.00011506,2]
[323424194,1713976248284,-746.39,0.00011506,2]
[323424195,1713976248293,-1375.05,0.00011506,2]
[323424198,1713976248303,-2805.05,0.00011506,2]
[323424200,1713976248313,-1037.34,0.00011506,2]
[323424202,1713976248325,-960.9,0.00011506,2]
[323424204,1713976248335,-1177.67,0.00011506,2]
[323424206,1713976248345,-500.0,0.00011506,2]
[323424208,1713976248355,-5007.68,0.00011506,2]
[323424210,1713976248365,-1713.56,0.00011506,2]
[323424212,1713976248375,-993.66,0.00011506,2]
[323424214,1713976248388,-3361.85,0.00011506,2]
[323424216,1713976248398,-982.57,0.00011506,2]
[323424218,1713976248407,-500.0,0.00011506,2]
[323424221,1713976248417,-541.47,0.00011506,2]
[323424223,1713976248427,-816.12,0.00011506,2]
[323424225,1713976248437,-500.0,0.00011506,2]
[323424227,1713976248446,-500.0,0.00011506,2]
[323424229,1713976248456,-675.35,0.00011506,2]
[323424231,1713976248465,-2187.48,0.00011506,2]
[323424232,1713976248474,-2925.39,0.00011506,2]
[323424235,1713976248484,-2115.12,0.00011506,2]
[323424237,1713976248494,-500.0,0.00011506,2]
[323424239,1713976248503,-1824.0,0.00011506,2]
[323424240,1713976248513,-2338.0,0.00011506,2]
[323424243,1713976248523,-500.0,0.00011506,2]
[323424244,1713976248533,-1261.55,0.00011506,2]
[323424247,1713976248543,-957.51,0.00011506,2]
[323424249,1713976248553,-3129.43,0.00011506,2]
[323424251,1713976248562,-9216.47,0.00011506,2]
[323424252,1713976248572,-500.0,0.00011506,2]
[323424255,1713976248581,-1043.04,0.00011506,2]
[323424257,1713976248591,-1391.34,0.00011506,2]
[323424259,1713976248600,-1867.59,0.00011506,2]
[323424261,1713976248610,-1528.0,0.00011506,2]
[323424263,1713976248620,-500.0,0.00011506,2]
[323424265,1713976248632,-500.0,0.00011506,2]
[323424267,1713976248641,-500.0,0.00011506,2]
[323424269,1713976248651,-900.23,0.00011506,2]
[323424271,1713976248660,-1992.68,0.00011506,2]
[323424273,1713976248669,-5137.5,0.00011506,2]
[323424275,1713976248678,-851.11,0.00011506,2]
[323424277,1713976248688,-1575.56,0.00011506,2]
[323424279,1713976248697,-2608.84,0.00011506,2]
[323424280,1713976248706,-7758.68,0.00011506,2]
[323424281,1713976248715,-1135.85,0.00011506,2]
[323424282,1713976248724,-834.43,0.00011506,2]
[323424283,1713976248733,-500.0,0.00011506,2]
[323424284,1713976248742,-500.0,0.00011506,2]
[323424285,1713976248751,-2309.45,0.00011506,2]
[323424286,1713976248760,-820.12,0.00011506,2]
[323424287,1713976248769,-2774.93,0.00011506,2]
[323424288,1713976248778,-2192.51,0.00011506,2]
[323424289,1713976248787,-2416.98,0.00011506,2]
[323424290,1713976248796,-500.0,0.00011506,2]
[323424291,1713976248808,-1213.21,0.00011506,2]
[323424293,1713976248817,-943.25,0.00011506,2]
[323424295,1713976248826,-768.28,0.00011506,2]
[323424296,1713976248838,-1813.22,0.00011506,2]
[323424299,1713976248847,-1279.26,0.00011506,2]
[323424300,1713976248857,-1127.54,0.00011506,2]
[323424302,1713976248866,-1167.27,0.00011506,2]
[323424305,1713976248876,-508.59,0.00011506,2]
[323424306,1713976248887,-2095.87,0.00011506,2]
[323424309,1713976248897,-1553.99,0.00011506,2]
[323424311,1713976248907,-1839.75,0.00011506,2]
[323424313,1713976248916,-584.71,0.00011506,2]
[323424315,1713976248926,-636.69,0.00011506,2]
[323424317,1713976248935,-3418.02,0.00011506,2]
[323424319,1713976248944,-1220.46,0.00011506,2]
[323424321,1713976248954,-2799.01,0.00011506,2]
[323424323,1713976248963,-500.0,0.00011506,2]
[323424325,1713976248972,-4314.83,0.00011506,2]
[323424327,1713976248981,-500.0,0.00011506,2]
[323424329,1713976248990,-500.0,0.00011506,2]
[323424331,1713976248999,-592.12,0.00011506,2]
[323424333,1713976249008,-500.0,0.00011506,2]
[323424335,1713976249017,-1945.28,0.00011506,2]
[323424337,1713976249027,-1232.81,0.00011506,2]
[323424339,1713976249036,-2272.15,0.00011506,2]
[323424341,1713976249045,-1584.98,0.00011506,2]
[323424343,1713976249055,-1559.8,0.00011506,2]
[323424345,1713976249064,-3166.0,0.00011506,2]
[323424347,1713976249073,-1218.47,0.00011506,2]
[323424349,1713976249084,-500.0,0.00011506,2]
[323424351,1713976249093,-644.11,0.00011506,2]
[323424353,1713976249102,-685.75,0.00011506,2]
[323424355,1713976249112,-5225.37,0.00011506,2]
[323424357,1713976249120,-500.0,0.00011506,2]
[323424359,1713976249130,-500.0,0.00011506,2]
[323424361,1713976249141,-2275.67,0.00011506,2]
[323424363,1713976249150,-3080.73,0.00011506,2]
[323424365,1713976249159,-500.0,0.00011506,2]
[323424367,1713976249169,-500.0,0.00011506,2]
[323424369,1713976249182,-785.82,0.00011506,2]
[323424378,1713976249250,-1915.51,0.00011506,2]
[323424380,1713976249259,-747.07,0.00011506,2]
[323424382,1713976249269,-1824.07,0.00011506,2]
[323424384,1713976249277,-5977.1,0.00011506,2]
[323424386,1713976249286,-4343.19,0.00011506,2]
[323424388,1713976249296,-3121.44,0.00011506,2]
[323424390,1713976249305,-1232.48,0.00011506,2]
[323424392,1713976249313,-626.45,0.00011506,2]
[323424394,1713976249322,-2365.18,0.00011506,2]
[323424396,1713976249331,-831.43,0.00011506,2]
[323424398,1713976249340,-500.0,0.00011506,2]
[323424400,1713976249349,-970.38,0.00011506,2]
[323424401,1713976249358,-500.0,0.00011506,2]
[323424403,1713976249367,-500.0,0.00011506,2]
[323424405,1713976249376,-1965.03,0.00011506,2]
[323424408,1713976249388,-1171.25,0.00011506,2]
[323424410,1713976249397,-1489.46,0.00011506,2]
[323424411,1713976249406,-500.0,0.00011506,2]
[323424414,1713976249415,-868.55,0.00011506,2]
[323424415,1713976249424,-500.0,0.00011506,2]
[323424417,1713976249433,-958.46,0.00011506,2]
[323424419,1713976249443,-1857.9,0.00011506,2]
[323424421,1713976249453,-5047.2,0.00011506,2]
[323424424,1713976249462,-640.25,0.00011506,2]
[323424425,1713976249472,-567.55,0.00011506,2]
[323424427,1713976249481,-956.3,0.00011506,2]
[323424429,1713976249491,-500.0,0.00011506,2]
[323424432,1713976249500,-2767.3,0.00011506,2]
[323424433,1713976249509,-2476.67,0.00011506,2]
[323424435,1713976249518,-500.0,0.00011506,2]
[323424437,1713976249527,-394.59679659,0.0001155,2]
[323424439,1713976249537,-151.69376941,0.00011555,2]
[323424442,1713976249547,-151.69376941,0.00011705,2]
[323424444,1713976249556,-688.0,0.00011768,2]
[323424445,1713976249566,-365.91002188,0.00011779,2]
[323424447,1713976249575,-500.0,0.00011779,2]
[323424449,1713976249584,-639.56,0.00011779,2]